[Event "4NCL Spring GM Round Robin 2024"]
[Site "Peterborough"]
[Date "2024.03.26"]
[Round "6.3"]
[White "Makkar, Rajat"]
[Black "Cherniaev, Alexander"]
[Result "1-0"]
[ECO "B08"]
[WhiteElo "2434"]
[BlackElo "2375"]
[Annotator "TA"]
[PlyCount "85"]
[EventDate "2024.03.22"]
[EventType "tourn"]
[EventCountry "ENG"]
[SourceTitle "playchess.com"]
[Source "ChessBase"]
[SourceQuality "1"]
[TimeControl "5400+30"]

{[%evp 23,85,40,54,27,35,25,52,36,27,18,60,54,78,64,60,60,72,71,109,79,65,76,70,46,62,51,66,44,77,80,96,81,113,137,151,150,150,116,102,66,97,75,81,75,70,20,19,22,13,18,288,287,284,314,300,306,288,218,225,209,207,188,194,152]} 1. d4 {[%emt 0:01:11]} g6 {[%emt 0:00:22]} 2. e4 {[%emt 0:00:18]} Bg7 {[%emt 0:01:32]} 3. Nf3 {[%emt 0:00:18]} d6 {[%emt 0:00:17]} 4. Be2 {[%emt 0:00:10]} Nf6 {[%emt 0:00:34]} 5. Nc3 {[%emt 0:00:11]} O-O {[%emt 0:01:00]} 6. O-O {[%emt 0:00:07]} Bg4 {[%emt 0:00:18]} 7. Be3 {[%emt 0:00:52]} Nc6 {[%emt 0:00:08]} 8. d5 {[%emt 0:00:34]} Bxf3 {[%emt 0:00:17]} 9. Bxf3 {[%emt 0:00:07]} Ne5 {[%emt 0:00:07]} 10. Be2 {[%emt 0:00:06]} c6 {[%emt 0:00:58]} 11. f4 {[%emt 0:00:08]} Ned7 {[%emt 0:00:18]} 12. dxc6 {[%emt 0:00:09]} bxc6 {[%emt 0:00:06]} 13. Kh1 {[%emt 0:00:04]} Qc7 {[%emt 0:03:44]} 14. Rb1 {[%emt 0:05:08]} Rfb8 {[%emt 0:06:42]} 15. Qd2 {[%emt 0:03:29] White is slightly better.} a5 {[%emt 0:02:55]} 16. b3 {[%emt 0:00:59]} Rb4 {[%emt 0:05:10]} 17. Bf3 {[%emt 0:05:53]} e5 {[%emt 0:23:20]} 18. a3 {[%emt 0:08:22]} Rb7 {[%emt 0:00:58]} 19. g3 {[%emt 0:10:53]} Re8 {[%emt 0:02:46]} 20. Rbd1 {[%emt 0:01:29]} Bf8 {[%emt 0:00:23]} 21. Bg2 {[%emt 0:09:53]} Ng4 {[%emt 0:02:23]} 22. Bg1 {[%emt 0:00:36]} exf4 {[%emt 0:00:19]} 23. gxf4 {[%emt 0:00:18]} Ngf6 {[%emt 0:00:27]} 24. Qd3 {[%emt 0:11:53]} Nh5 {[%emt 0:01:12][%cal Bf6h5,Bh5g7,Bg7e6,Be6c5][%mdl 32]} 25. Ne2 {[%emt 0:01:15]} Ng7 {[%emt 0:01:25]} 26. Ng3 {[%emt 0:05:14]} Ne6 {[%emt 0:00:14]} 27. Qf3 {[%emt 0:01:02]} Nec5 {[%emt 0:00:49]} 28. Bd4 {[%emt 0:01:26]} Qd8 {[%emt 0:05:43] [#]} 29. e5 $1 {[%emt 0:05:03][%mdl 512] Strongly threatening exd6.} d5 {[%emt 0:00:14]} 30. c4 {[%emt 0:01:34]} Rxb3 {[%emt 0:00:29]} 31. Qg4 {[%emt 0:00:18]} Ne6 {[%emt 0:09:40]} 32. cxd5 {[%emt 0:00:47]} cxd5 {[%emt 0:00:01]} 33. f5 {[%emt 0:09:35]} (33. Bxd5 $2 Nf6 $19 (33... Rxa3 $2 34. Bb2 $18) (33... Rxa3 $2 34. Bb2 $18)) 33... Nxd4 {[%emt 0:00:26]} 34. fxg6 {[%emt 0:00:05]} (34. Qxd4 $14 Nxe5 35. Bxd5) 34... hxg6 $11 {[%emt 0:00:31]} ({Stronger than} 34... Nxe5 35. gxf7+ Kh8 36. Qg8#) 35. Bxd5 {[%emt 0:01:11]} (35. Qxd4 {seems wilder.} Nxe5 36. Bxd5 Qb8 37. Rxf7 Nxf7 38. Qf6) 35... Nxe5 {[%emt 0:01:42]} 36. Qxd4 $40 {[%emt 0:00:40][%mdl 128] And now Rxf7 would win. Black needs to defend precisely.} Rb6 $2 {[%emt 0:04:05][%mdl 8192] [#] Loses the game.} (36... Rxa3 $2 {perishes.} 37. Qxe5 Rxe5 38. Bxf7+ Kh7 39. Rxd8 $18) (36... Qb8 $1 $11 {and Black has nothing to worry.}) 37. Qxe5 $3 $18 {[%emt 0:01:22][%mdl 512]} Rxe5 {[%emt 0:01:59]} 38. Bxf7+ {[%emt 0:00:06]} Kg7 {[%emt 0:00:04]} 39. Rxd8 {[%emt 0:00:35] Bd5 would now be deadly.} Bxa3 {[%emt 0:00:09]} 40. Bd5 {[%emt 0:03:09]} Rb4 {[%emt 0:02:42] White is clearly better.} 41. Kg2 {[%emt 0:04:31] Black must now prevent Rf7+.} Rd4 {[%emt 0:00:19]} 42. Rf7+ {[%emt 0:00:17]} Kh6 {[%emt 0:00:02]} 43. Rh8+ {[%emt 0:00:16] Weighted Error Value: White=0.17 (very precise) /Black=0.21 (precise) .  Loses game:     	---       	Black=1      Mistake:       	White=1     	---        Inaccurate:     	White=1     	Black=6      OK:         	White=11    	Black=12     Best:        	White=1     	---        Brilliant:      	White=1     	---} 1-0

[Event "4NCL Spring GM Round Robin 2024"]
[Site "Peterborough"]
[Date "2024.03.26"]
[Round "6.4"]
[White "Kalavannan, Koby"]
[Black "Harvey, Marcus R"]
[Result "0-1"]
[ECO "A20"]
[WhiteElo "2324"]
[BlackElo "2468"]
[Annotator "TA"]
[PlyCount "92"]
[EventDate "2024.03.22"]
[EventType "tourn"]
[EventCountry "ENG"]
[SourceTitle "playchess.com"]
[Source "ChessBase"]
[SourceQuality "1"]
[TimeControl "5400+30"]

{[%evp 23,91,4,-2,-105,55,62,60,54,69,64,42,54,68,47,41,0,0,0,84,75,67,-18,-5,-22,40,46,52,8,8,8,8,52,41,0,0,0,0,-22,-6,-4,-8,-5,0,-33,-31,-74,-79,-86,-52,-104,-79,-72,-81,-103,-101,-113,-57,-133,-99,-535,-522,-535,-533,-548,-547,-532,-532,-29998,-29999,-29999]} 1. g3 {[%emt 1:31:00]} e5 {[%emt 0:03:11]} 2. c4 {[%emt 0:00:00]} c6 {[%emt 0:00:11]} 3. d4 {[%emt 0:00:00]} e4 {[%emt 0:00:16]} 4. Nc3 {[%emt 0:00:00]} d5 {[%emt 0:00:08]} 5. a3 {[%emt 0:00:00]} h6 {[%emt 0:09:19]} 6. Bf4 $146 {[%emt 0:00:00] A20: English Opening: 1...e5.} ({Predecessor:} 6. Bg2 Nf6 7. f3 exf3 8. Nxf3 Be7 9. O-O O-O 10. Nh4 dxc4 11. e4 Bg4 12. Bf3 {0-1 Niemann,H (2642)-Esipenko,A (2714) Airthings Masters Prelim rapid 2022 (9)}) 6... Nf6 {[%emt 0:01:09]} 7. cxd5 {[%emt 0:00:00]} cxd5 {[%emt 0:00:13]} 8. Qa4+ {[%emt 0:00:00]} Bd7 {[%emt 0:02:17]} 9. Qb3 {[%emt 0:00:00]} Bc6 {[%emt 0:00:30]} 10. e3 {[%emt 0:00:00]} a6 {[%emt 0:05:54]} 11. f3 {[%emt 0:00:00]} Qa5 {[%emt 0:02:26]} 12. O-O-O {[%emt 0:00:00]} Nbd7 {[%emt 0:16:19]} 13. fxe4 {[%emt 0:00:00]} (13. Kb1 $11) 13... g5 $2 {[%emt 0:00:43]} (13... dxe4 14. Bc4 $16) (13... Nxe4 $17 {White must now prevent ...g5.} 14. Nxe4 dxe4) 14. Be5 $1 $14 {[%emt 0:00:00]} Nxe5 {[%emt 0:00:27]} 15. dxe5 {[%emt 0:00:00]} Nxe4 {[%emt 0:00:26]} 16. Nxe4 {[%emt 0:00:00]} dxe4 {[%emt 0:00:02]} 17. Bc4 {[%emt 0:00:00]} Qc7 $1 {[%emt 0:05:58]} 18. Kb1 {[%emt 0:00:00]} (18. Ne2 $2 Bb5 (18... Qxe5 $2 19. Bxf7+ Ke7 20. Bh5 $18) 19. Qc2 (19. Rd4 $2 Rc8 $19) 19... Bxc4 $19 (19... Qxc4 $2 20. Nc3 $19)) (18. e6 {simplifies} fxe6 19. Kb1 Rd8 20. Rxd8+ Qxd8 21. Ne2) 18... b5 {[%emt 0:00:58]} (18... Qxe5 $2 19. Bxf7+ Ke7 20. Bh5 $18) 19. Be6 {[%emt 0:00:00]} (19. Bd5 {simplifies} Bg7 20. Ne2 Bxe5 21. Qb4) 19... Bg7 $1 {[%emt 0:00:32]} (19... fxe6 $2 20. Qxe6+ Be7 21. Qg6+ Kf8 22. Rf1+ $18) 20. h4 {[%emt 0:00:00]} g4 {[%emt 0:10:17]} (20... fxe6 21. Qxe6+ Qe7 22. Qxc6+ Kf7 23. Rf1+ (23. Qxe4 Rhe8 $18) 23... Kg8 24. Qxa8+ $18) (20... Bxe5 $11 {keeps the balance.} 21. Ne2 Qe7 (21... fxe6 $2 22. Qxe6+ Kf8 23. hxg5 $18)) 21. Ne2 $16 {[%emt 0:00:00]} (21. Bxg4 Qxe5 (21... Bxe5 22. Ne2 $11) 22. Ne2 O-O $11) 21... O-O {[%emt 0:00:37]} 22. Bxg4 {[%emt 0:00:00]} ({Better is} 22. Rc1 $1 $14) 22... Qxe5 $11 {[%emt 0:00:16]} 23. Rhf1 {[%emt 0:00:00]} Kh8 {[%emt 0:06:00]} (23... b4 $11 24. Nd4 Bd5 25. Qxb4 Rab8) 24. Rf5 $14 {[%emt 0:00:00]} (24. Rxf7 $2 {loses.} Rxf7 25. Nf4 Rf6 $19) 24... Qe7 {[%emt 0:00:01]} 25. Bh5 {[%emt 0:00:00]} Bd7 $1 {[%emt 0:09:37]} 26. Rxf7 {[%emt 0:03:52]} Be6 $1 {[%emt 0:07:18]} 27. Rxe7 {[%emt 0:04:12]} Bxb3 {[%emt 0:00:02]} 28. Nf4 {[%emt 0:00:10]} (28. Rc1 $5) 28... Bxd1 {[%emt 0:00:14]} 29. Bxd1 {[%emt 0:00:30]} Rfe8 {[%emt 0:00:47]} 30. Rf7 {[%emt 0:00:25]} Red8 {[%emt 0:02:52]} 31. Bc2 {[%emt 0:00:24]} Rac8 {[%emt 0:02:04]} 32. Ng6+ $1 {[%emt 0:01:28]} (32. Bxe4 $2 {perishes.} Rd1+ 33. Ka2 Rd2 $19) 32... Kg8 {[%emt 0:00:21]} 33. Rf2 {[%emt 0:00:30]} Re8 {[%emt 0:01:31]} 34. Rf4 {[%emt 0:00:26]} Rcd8 {[%emt 0:00:39]} 35. Kc1 {[%emt 0:00:32]} Rd6 {[%emt 0:00:32]} 36. h5 {[%emt 0:00:14]} (36. Rxe4 $15 Rxe4 37. Bxe4) 36... Rf6 {[%emt 0:00:42]} 37. Bb3+ {[%emt 0:02:35]} Kh7 {[%emt 0:00:07]} 38. Bd5 {[%emt 0:00:25]} a5 {[%emt 0:01:33]} (38... Rxf4 {simplifies} 39. Nxf4 a5 40. Kc2 Bf6) 39. Kb1 {[%emt 0:01:00]} Rd6 {[%emt 0:02:10]} (39... Rxf4 $17 40. gxf4 Bf6) 40. Bxe4 {[%emt 0:00:21]} (40. Rf5 $1 $15) 40... Rd2 {[%emt 0:00:14]} 41. Bc2 $2 {[%emt 0:01:15][%mdl 8192]} (41. Ne7+ $17 {is tougher.} Kh8 42. Ng6+ Kg8 43. Kc1) 41... Rc8 $19 {[%emt 0:02:15]} 42. Nf8+ {[%emt 0:00:41]} Kg8 {[%emt 0:01:31]} 43. Bb3+ {[%emt 0:01:28]} Kh8 {[%emt 0:00:05]} 44. Ng6+ {[%emt 0:00:30]} Kh7 {[%emt 0:00:05]} 45. Be6 {[%emt 0:00:31]} Rxb2+ {[%emt 0:00:08]} 46. Ka1 {[%emt 0:00:05]} Rc1# {[%emt 0:00:33]} 0-1

[Event "4NCL Spring GM Round Robin 2024"]
[Site "Peterborough"]
[Date "2024.03.26"]
[Round "6.5"]
[White "Chow, Samuel"]
[Black "Teclaf, Pawel"]
[Result "0-1"]
[ECO "E11"]
[WhiteElo "2356"]
[BlackElo "2556"]
[Annotator "TA"]
[PlyCount "54"]
[EventDate "2024.03.22"]
[EventType "tourn"]
[EventCountry "ENG"]
[SourceTitle "playchess.com"]
[Source "ChessBase"]
[SourceQuality "1"]
[TimeControl "5400+30"]

{[%evp 14,54,21,21,14,16,16,8,7,2,0,-10,0,-2,0,-11,0,-9,-3,-15,-14,-6,-11,-4,-10,-8,-15,-104,-106,-260,-271,-547,-556,-599,-582,-628,-370,-704,-697,-850,-822,-822,-758]} 1. d4 {[%emt 0:00:03]} Nf6 {[%emt 0:02:24]} 2. c4 {[%emt 0:00:22]} e6 {[%emt 0:00:15]} 3. Nf3 {[%emt 0:00:23]} Bb4+ {[%emt 0:00:08]} 4. Bd2 {[%emt 0:00:35]} Qe7 {[%emt 0:03:21]} 5. e3 {[%emt 0:00:38]} b6 {[%emt 0:03:39]} 6. Bd3 {[%emt 0:00:18]} Bb7 {[%emt 0:00:07]} 7. O-O {[%emt 0:00:15]} Bxd2 {[%emt 0:06:17]} 8. Nbxd2 {[%emt 0:01:00]} d6 {[%emt 0:00:24]} 9. e4 {[%emt 0:01:43]} e5 {[%emt 0:01:58]} 10. b4 {[%emt 0:02:13][%cal Bb2b4,Bb4b5][%mdl 32]} exd4 {[%emt 0:08:48] The position is equal.} 11. Nxd4 {[%emt 0:00:28]} O-O {[%emt 0:00:04]} 12. Qc2 {[%emt 0:05:08]} g6 {[%emt 0:08:55]} 13. a3 {[%emt 0:07:35]} c5 {[%emt 0:01:39]} 14. N4f3 {[%emt 0:06:18]} Nc6 {[%emt 0:01:45]} 15. b5 {[%emt 0:07:18]} Ne5 {[%emt 0:00:49]} 16. Nxe5 {[%emt 0:04:43]} dxe5 {[%emt 0:00:23]} 17. Nb1 {[%emt 0:04:24]} Nh5 {[%emt 0:02:43]} 18. Nc3 {[%emt 0:01:48]} Nf4 {[%emt 0:01:42]} 19. Nd5 {[%emt 0:02:58]} (19. f3 {simplifies} Ne6 20. Qf2 Qd6 21. Nd5) 19... Qg5 {[%emt 0:00:18][%csl Gf4][%cal Rg5g2] [#]} 20. f3 {[%emt 0:06:19]} (20. g3 $11 Ne6 21. Qc1) 20... Bxd5 $17 {[%emt 0:05:47]} 21. h4 $2 {[%emt 0:08:58] Loses the game.} (21. cxd5 $17 Nxg2 22. Kh1) 21... Qxh4 $19 {[%emt 0:04:50]} 22. exd5 {[%emt 0:00:18] White is weak on the dark squares} (22. cxd5 {was the only defense.} Qg3 23. Rad1) 22... f5 {[%emt 0:02:15]} 23. Rae1 {[%emt 0:00:24]} Qg3 {[%emt 0:01:17][%cal Oe5e4]} 24. Qd2 {[%emt 0:02:44]} Qg5 {[%emt 0:01:51] [#] Threatens to win with ...Nh3+.} 25. Qc2 $2 {[%emt 0:00:32]} (25. Rf2) 25... Rae8 {[%emt 0:00:37][%cal Oe5e4] aiming for ...e4! Black is clearly winning.} 26. Kh2 {[%emt 0:01:09]} Qh4+ {[%emt 0:01:47]} 27. Kg1 {[%emt 0:00:07]} Qg3 {[%emt 0:00:19] Weighted Error Value: White=0.82/Black=0.24 (precise) .  Mistake:       	White=4     	---        Inaccurate:     	---       	Black=1      OK:         	White=5     	Black=9      Best:        	---       	Black=1} 0-1

[Event "4NCL Spring GM Round Robin 2024"]
[Site "Peterborough"]
[Date "2024.03.26"]
[Round "7.2"]
[White "Harvey, Marcus R"]
[Black "Chow, Samuel"]
[Result "1/2-1/2"]
[ECO "A10"]
[WhiteElo "2468"]
[BlackElo "2356"]
[Annotator "TA"]
[PlyCount "117"]
[EventDate "2024.03.22"]
[EventType "tourn"]
[EventCountry "ENG"]
[SourceTitle "playchess.com"]
[Source "ChessBase"]
[SourceQuality "1"]
[TimeControl "5400+30"]

{[%evp 37,117,-91,-113,-129,71,67,84,70,94,62,62,62,62,62,62,10,13,0,0,-12,65,-13,-22,-73,-58,-70,-39,-91,-64,-57,-56,-172,0,-146,-56,-53,0,-58,-57,-52,-62,-61,-62,-97,-77,-80,-16,-16,-16,-12,-12,-12,-8,-8,-8,-8,0,0,0,0,0,0,44,44,44,51,44,44,63,57,38,62,75,42,42,42,42,8,8,8,8,8]} 1. c4 {[%emt 0:04:24]} g6 {[%emt 0:00:25]} 2. e4 {[%emt 0:00:05]} e5 {[%emt 0:00:18]} 3. d4 {[%emt 0:00:33]} Nf6 {[%emt 0:00:27]} 4. f3 {[%emt 0:07:17]} exd4 {[%emt 0:08:20]} 5. Qxd4 {[%emt 0:00:04]} Nc6 {[%emt 0:00:34]} 6. Qf2 {[%emt 0:00:05] A10: English Opening: Unusual Replies for Black.} Bg7 {[%emt 0:02:34]} 7. Nc3 {[%emt 0:00:54]} d6 {[%emt 0:01:03]} 8. Nge2 {[%emt 0:03:14]} O-O {[%emt 0:01:28]} 9. Nf4 $146 {[%emt 0:00:22]} ({Predecessor:} 9. Be3 Be6 10. Nf4 Nh5 11. Nxh5 gxh5 12. Qd2 f5 13. exf5 Bxf5 14. Be2 Qf6 15. O-O {1-0 Ding,L (2799)-Xu,X (2564) Hangzhou GM 2022 (8)}) 9... Nd7 {[%emt 0:02:07]} 10. Be2 {[%emt 0:05:12]} Nb4 {[%emt 0:05:28]} 11. Kd1 {[%emt 0:02:34]} Nc5 {[%emt 0:04:36]} 12. g4 {[%emt 0:04:07]} Bd7 {[%emt 0:08:33]} 13. Be3 {[%emt 0:05:13]} Na4 {[%emt 0:04:43]} 14. Kd2 {[%emt 0:00:36]} c5 {[%emt 0:01:36]} 15. a3 {[%emt 0:03:01]} Nxc3 {[%emt 0:05:12]} 16. bxc3 {[%emt 0:01:52]} Nc6 {[%emt 0:00:32]} 17. Nd5 {[%emt 0:05:09]} Be6 {[%emt 0:04:23]} 18. Rhb1 {[%emt 0:08:04]} Na5 {[%emt 0:06:08]} 19. Ra2 {[%emt 0:05:52]} Bxd5 {[%emt 0:05:25]} 20. cxd5 {[%emt 0:00:31] [#]} g5 $2 {[%emt 0:00:56]} (20... f5 $1 $17 {[%cal Rf5f4] and life is bright. ...f4 would now be deadly.} 21. gxf5 gxf5) 21. h4 $16 {[%emt 0:01:08]} h6 {[%emt 0:01:09]} 22. hxg5 {[%emt 0:00:08]} hxg5 {[%emt 0:00:04]} 23. Qh2 {[%emt 0:04:25]} Qf6 {[%emt 0:02:05]} 24. Rc2 {[%emt 0:00:31]} Qg6 {[%emt 0:04:43]} 25. Qh5 {[%emt 0:05:44]} Bf6 $1 {[%emt 0:03:04] [#]} 26. e5 {[%emt 0:08:29]} (26. Qxg6+ $1 $14 fxg6 27. Rcc1) 26... Bxe5 $11 {[%emt 0:01:46]} 27. Qxg5 {[%emt 0:00:37]} Kg7 {[%emt 0:03:14]} 28. Rf1 {[%emt 0:03:05]} Rh8 {[%emt 0:04:34]} (28... Qxg5 $11 29. Bxg5 Bf6) 29. Kd1 {[%emt 0:02:20]} (29. Qxg6+ $14 fxg6 30. f4) 29... Rh3 $11 {[%emt 0:01:21]} (29... Qxg5 {simplifies} 30. Bxg5 Rh3 31. Bd2 Nb3) 30. Bd3 {[%emt 0:01:28]} (30. Qxg6+ $11 Kxg6 31. Bd2) 30... Qxg5 $17 {[%emt 0:00:06]} 31. Bxg5 {[%emt 0:00:01]} Rah8 {[%emt 0:19:06]} 32. Re2 {[%emt 0:02:32]} (32. Bc1 $15) 32... Bxc3 {[%emt 0:00:00]} 33. Kc2 {[%emt 0:00:07]} Bd4 {[%emt 0:00:00]} 34. Bf4 {[%emt 0:01:30]} (34. Bd2 $1 $15 b6 35. Bb5) 34... Rh1 $2 {[%emt 0:00:00]} ({Black should play} 34... c4 $19 35. Bf5 Bc5) 35. Rfe1 {[%emt 0:04:11]} (35. Rxh1 $11 Rxh1 36. Re7 (36. Bxd6 c4 $11)) 35... Rxe1 {[%emt 0:00:00]} (35... c4 $17 36. Bf5 Bc5 37. Rxh1 Rxh1) 36. Rxe1 $15 {[%emt 0:00:01]} Rh3 {[%emt 0:00:00]} (36... c4 $15 37. Bf1 Rh1) 37. Be2 {[%emt 0:02:08]} ({Better is} 37. Bxd6 $11 Rxf3 38. Re8) 37... Be5 {[%emt 0:00:00]} 38. Bxe5+ {[%emt 0:00:22]} dxe5 {[%emt 0:00:00]} 39. Kd3 {[%emt 0:01:44]} f5 {[%emt 0:00:00]} 40. Ke3 {[%emt 0:01:27]} Kf6 {[%emt 0:00:00]} 41. gxf5 {[%emt 0:00:09]} Nb3 {[%emt 0:00:00]} (41... Rh4 $17 42. Rg1 Kxf5) 42. Rb1 $11 {[%emt 0:00:50]} Nd4 {[%emt 0:00:00]} 43. Rxb7 {[%emt 0:00:32]} Nxf5+ {[%emt 0:00:00]} 44. Kf2 {[%emt 0:02:25]} Rh2+ {[%emt 0:00:00]} 45. Ke1 {[%emt 0:00:01]} Nd4 {[%emt 0:00:00]} 46. Bd1 $1 {[%emt 0:00:29]} e4 {[%emt 0:02:14]} (46... c4 $5 47. Rc7 $8 Ra2 $11) 47. fxe4 {[%emt 0:00:25]} Ke5 {[%emt 0:00:03]} 48. Rc7 {[%emt 0:05:22]} Kxe4 {[%emt 0:01:52]} 49. d6 {[%emt 0:00:44]} Rh1+ {[%emt 0:01:01]} 50. Kd2 {[%emt 0:00:05]} Rh6 {[%emt 0:00:04]} 51. d7 {[%emt 0:00:43]} (51. Rxa7 Rxd6 52. Rh7 Nc6+ 53. Kc1 Rf6 $11) 51... Rd6 {[%emt 0:00:02]} 52. Kc1 {[%emt 0:00:32]} (52. Rxa7 $2 {is the wrong capture.} Nb5+ 53. Ke1 Nxa7 $19) 52... Nf3 {[%emt 0:02:17]} 53. Rxa7 {[%emt 0:01:23]} Ne5 {[%emt 0:00:05]} 54. Ba4 {[%emt 0:00:11]} Kd3 {[%emt 0:00:59]} 55. Ra8 {[%emt 0:00:33]} Nxd7 {[%emt 0:01:00]} 56. Rd8 {[%emt 0:00:04]} Kc3 {[%emt 0:00:44]} 57. Bxd7 {[%emt 0:01:48]} c4 {[%emt 0:00:18]} 58. a4 {[%emt 0:00:19]} Rd5 {[%emt 0:00:22]} 59. a5 {[%emt 0:01:44]} 1/2-1/2

[Event "4NCL Spring GM Round Robin 2024"]
[Site "Peterborough"]
[Date "2024.03.26"]
[Round "7.3"]
[White "Cherniaev, Alexander"]
[Black "Kalavannan, Koby"]
[Result "1/2-1/2"]
[ECO "E62"]
[WhiteElo "2375"]
[BlackElo "2324"]
[Annotator "RC"]
[PlyCount "194"]
[EventDate "2024.03.22"]
[EventType "tourn"]
[EventCountry "ENG"]
[SourceTitle "playchess.com"]
[Source "ChessBase"]
[SourceQuality "1"]
[TimeControl "5400+30"]

1. d4 {[%emt 0:04:48]} Nf6 {[%emt 1:31:00]} 2. c4 {[%emt 0:00:05]} g6 {[%emt 0:00:00]} 3. g3 {[%emt 0:01:07]} Bg7 {[%emt 0:00:00]} 4. Bg2 {[%emt 0:00:12]} O-O {[%emt 0:00:00]} 5. Nf3 {[%emt 0:00:39]} d6 {[%emt 0:00:00]} 6. O-O {[%emt 0:00:08]} Nc6 {[%emt 0:00:00]} 7. d5 {[%emt 0:00:08]} Nb8 {[%emt 0:00:00]} 8. Nc3 {[%emt 0:01:36]} e5 {[%emt 0:00:00]} 9. e4 {[%emt 0:01:59]} a5 {[%emt 0:00:00]} 10. Bg5 {[%emt 0:03:55]} h6 {[%emt 0:00:00]} 11. Bd2 {[%emt 0:00:31]} Na6 {[%emt 0:00:00]} 12. Nh4 {[%emt 0:05:36]} Nc5 {[%emt 0:00:00]} 13. Re1 {[%emt 0:07:30]} g5 {[%emt 0:00:00]} 14. Nf3 {[%emt 0:06:26]} Bg4 {[%emt 0:00:00]} 15. Qc2 {[%emt 0:06:39]} Qd7 {[%emt 0:00:00]} 16. Kh1 {[%emt 0:02:25]} Bh5 {[%emt 0:00:00]} 17. Ng1 {[%emt 0:00:48]} c6 {[%emt 0:00:00]} 18. Be3 {[%emt 0:05:13]} cxd5 {[%emt 0:00:00]} 19. Bxc5 {[%emt 0:00:07]} d4 {[%emt 0:00:00]} 20. Ba3 {[%emt 0:02:16]} dxc3 {[%emt 0:00:00]} 21. Qxc3 {[%emt 0:00:23]} Rfc8 {[%emt 0:00:00]} 22. Qd3 {[%emt 0:01:01]} Qa4 {[%emt 0:00:00]} 23. Rac1 {[%emt 0:24:04]} Ra6 {[%emt 0:00:00]} 24. Ne2 {[%emt 0:05:49]} Rac6 {[%emt 0:00:00]} 25. Nc3 {[%emt 0:02:24]} Qxc4 {[%emt 0:00:00]} 26. Qxc4 {[%emt 0:00:06]} Rxc4 {[%emt 0:00:00]} 27. Bxd6 {[%emt 0:00:09]} Ne8 {[%emt 0:00:00]} 28. Ba3 {[%emt 0:02:10]} b5 {[%emt 0:00:00]} 29. Bf1 {[%emt 0:00:09]} b4 {[%emt 0:00:00]} 30. Bxc4 {[%emt 0:00:15]} Rxc4 {[%emt 0:00:00]} 31. Nb5 {[%emt 0:03:12]} Rxc1 {[%emt 0:00:00]} 32. Rxc1 {[%emt 0:00:01]} Be2 {[%emt 0:00:00]} 33. Bxb4 {[%emt 0:01:41]} axb4 {[%emt 0:00:00]} 34. a4 {[%emt 0:02:35]} bxa3 {[%emt 0:00:00]} 35. Nxa3 {[%emt 0:00:02]} Nd6 {[%emt 0:00:00]} 36. b4 {[%emt 0:01:43]} Bf8 {[%emt 0:00:00]} 37. b5 {[%emt 0:01:50]} Nxb5 {[%emt 0:06:27]} 38. Nxb5 {[%emt 0:00:14]} Bxb5 {[%emt 0:00:01]} 39. h3 {[%emt 0:00:23]} g4 {[%emt 0:01:19]} 40. hxg4 {[%emt 0:00:08]} Be2 {[%emt 0:00:12]} 41. Kg2 {[%emt 0:01:37]} Bxg4 {[%emt 0:00:00]} 42. f3 {[%emt 0:00:08]} Be6 {[%emt 0:01:11]} 43. Rh1 {[%emt 0:01:04]} Kh7 {[%emt 0:01:47]} 44. g4 {[%emt 0:02:52]} Be7 {[%emt 0:00:19]} 45. Rh5 {[%emt 0:00:10]} Bg5 {[%emt 0:00:10]} 46. Rh1 {[%emt 0:00:04]} Kg7 {[%emt 0:00:27]} 47. Rh5 {[%emt 0:00:24]} Kf8 {[%emt 0:00:13]} 48. Rh1 {[%emt 0:00:02]} Ke7 {[%emt 0:00:34]} 49. Kf2 {[%emt 0:00:08]} Bc4 {[%emt 0:00:24]} 50. Kg3 {[%emt 0:00:41]} Kd6 {[%emt 0:00:24]} 51. Rd1+ {[%emt 0:00:08]} Kc5 {[%emt 0:00:09]} 52. Rd7 {[%emt 0:00:12]} Kb4 {[%emt 0:00:06]} 53. Kf2 {[%emt 0:00:31]} Kc3 {[%emt 0:00:32]} 54. Rc7 {[%emt 0:00:13]} Bh4+ {[%emt 0:02:53]} 55. Ke3 {[%emt 0:00:13]} Be1 {[%emt 0:00:22]} 56. Rc8 {[%emt 0:00:16]} Bd2+ {[%emt 0:01:22]} 57. Kf2 {[%emt 0:01:52]} Kb3 {[%emt 0:00:32]} 58. Rb8+ {[%emt 0:00:36]} Bb4 {[%emt 0:00:20]} 59. Rh8 {[%emt 0:00:51]} Bc5+ {[%emt 0:00:38]} 60. Kg2 {[%emt 0:00:14]} Be3 {[%emt 0:00:07]} 61. Rd8 {[%emt 0:00:29]} Kc3 {[%emt 0:00:16]} 62. Rd6 {[%emt 0:00:40]} Bg5 {[%emt 0:00:50]} 63. Kf2 {[%emt 0:00:08]} Bd3 {[%emt 0:00:08]} 64. Rd7 {[%emt 0:00:35]} Bh4+ {[%emt 0:00:41]} 65. Ke3 {[%emt 0:00:14]} Bg5+ {[%emt 0:00:01]} 66. Kf2 {[%emt 0:00:07]} f6 {[%emt 0:00:19]} 67. Ra7 {[%emt 0:02:15]} Kd2 {[%emt 0:00:57]} 68. Ra2+ {[%emt 0:00:15]} Bc2 {[%emt 0:00:16]} 69. Ra6 {[%emt 0:00:15]} Bh4+ {[%emt 0:00:15]} 70. Kg2 {[%emt 0:00:06]} Ke3 {[%emt 0:00:32]} 71. Ra3+ {[%emt 0:00:41]} Kf4 {[%emt 0:00:25]} 72. Ra1 {[%emt 0:01:13]} Bd3 {[%emt 0:03:00]} 73. Rh1 {[%emt 0:00:15]} Bg5 {[%emt 0:02:57]} 74. Kf2 {[%emt 0:00:30]} Bxe4 {[%emt 0:01:32]} 75. fxe4 {[%emt 0:00:07]} Kxg4 {[%emt 0:02:35]} 76. Ra1 {[%emt 0:02:09]} Kf4 {[%emt 0:00:18]} 77. Ra4 {[%emt 0:00:11]} Bh4+ {[%emt 0:00:31]} 78. Kg2 {[%emt 0:00:04]} Be1 {[%emt 0:00:22]} 79. Ra6 {[%emt 0:00:06]} Bh4 {[%emt 0:00:36]} 80. Ra4 {[%emt 0:00:19]} Bg5 {[%emt 0:00:33]} 81. Kh3 {[%emt 0:02:16]} Kf3 {[%emt 0:00:06]} 82. Rc4 {[%emt 0:00:05]} h5 {[%emt 0:01:47]} 83. Ra4 {[%emt 0:00:04]} Ke3 {[%emt 0:00:14]} 84. Kg2 {[%emt 0:00:13]} Ke2 {[%emt 0:00:57]} 85. Ra2+ {[%emt 0:00:11]} Kd3 {[%emt 0:00:04]} 86. Ra4 {[%emt 0:00:16]} Ke3 {[%emt 0:00:47]} 87. Rc4 {[%emt 0:00:16]} Kf4 {[%emt 0:00:03]} 88. Kh3 {[%emt 0:00:12]} Kf3 {[%emt 0:00:03]} 89. Ra4 {[%emt 0:00:10]} Be3 {[%emt 0:00:07]} 90. Ra6 {[%emt 0:00:50]} Bg5 {[%emt 0:01:43]} 91. Ra4 {[%emt 0:00:05]} Be3 {[%emt 0:00:58]} 92. Ra6 {[%emt 0:00:08]} Bf4 {[%emt 0:00:26]} 93. Rxf6 {[%emt 0:00:17]} Kxe4 {[%emt 0:00:04]} 94. Kh4 {[%emt 0:01:08]} Kf3 {[%emt 0:00:13]} 95. Re6 {[%emt 0:00:18]} e4 {[%emt 0:00:31]} 96. Rxe4 {[%emt 0:00:08]} Bg3+ {[%emt 0:00:21]} 97. Kxh5 {[%emt 0:00:19]} Kxe4 {[%emt 0:00:51]} 1/2-1/2